bitfinex-derivatives/quotes_SOLF0:USTF0_20250823
["timestamp","ask_amount","ask_price","bid_price","bid_amount"]
[1755925910278,31.96,206.18,206.08,4.2952298]
[1755925910477,31.96,206.18,206.09,4.2952298]
[1755925910685,31.96,206.18,206.1,4.2952298]
[1755925910887,31.96,206.18,206.07,4.8548]
[1755925911086,31.96,206.18,206.08,4.29643604]
[1755925911288,31.96,206.18,206.09,4.29643604]
[1755925911483,31.96,206.18,206.06,2.71]
[1755925911687,31.96,206.18,205.95,267.1694]
[1755925911688,2.68,206.17,206.07,4.29866879]
[1755925911986,2.68,206.17,206.02,2.71]
[1755925912187,2.68,206.17,206.03,8.62648301]
[1755925912380,2.68,206.17,206.04,4.2997069]
[1755925912581,2.68,206.17,206.05,4.2997069]
[1755925912786,2.68,206.17,206.06,4.2997069]
[1755925912987,2.68,206.17,206.02,26.9901]
[1755925913183,2.68,206.17,206.05,4.8553]
[1755925913391,2.68,206.17,206.06,4.29992647]
[1755925913687,2.68,206.17,206.07,4.30105435]
[1755925913888,2.68,206.17,206.04,24.2779]
[1755925914088,2.68,206.17,206.05,4.29961838]
[1755925914384,2.68,206.17,206.1,0.0349609]
[1755925914588,2.68,206.17,206.11,4.29949857]
[1755925914785,2.68,206.17,206.1,0.0349609]
[1755925915488,2.68,206.17,206.11,4.8539]
[1755925916490,29.28,206.18,206.14,2.71]
[1755925917391,29.28,206.18,206.1,0.0349609]
[1755925919591,29.28,206.18,206.11,4.8539]
[1755925920195,17.59,206.17,206.11,4.8539]
[1755925920493,17.59,206.17,206.1,0.0349609]
[1755925921191,17.59,206.17,206.12,4.8537]
[1755925921399,17.59,206.17,206.11,2.71]
[1755925921787,17.59,206.17,206.1,24.3056609]
[1755925921788,17.59,206.17,206.13,2.71]
[1755925921992,17.59,206.17,206.1,0.0349609]
[1755925922389,17.59,206.17,206.11,4.8539]
[1755925922789,17.59,206.17,206.1,0.0349609]
[1755925923302,17.59,206.17,206.1,4.8889609]
[1755925924199,17.59,206.17,206.1,0.0349609]
[1755925924398,17.59,206.17,206.11,24.2695]
[1755925924599,17.59,206.17,206.16,4.8527]
[1755925924902,17.59,206.17,206.13,2.77]
[1755925925197,17.59,206.17,206.15,2.77]
[1755925925395,17.59,206.17,206.11,30.3845539]
[1755925925596,17.59,206.17,206.13,2.77]
[1755925925792,17.59,206.17,206.13,7.6234]
[1755925925995,17.59,206.17,206.14,4.50589685]
[1755925926199,17.59,206.17,206.14,2.77]
[1755925926410,17.59,206.17,206.13,4.8534]
[1755925929694,17.59,206.17,206.13,7.6234]
[1755925930804,17.59,206.17,206.1,4.854]
[1755925930999,17.59,206.17,206.08,152.2531]
[1755925931198,17.59,206.17,206.09,4.50622285]
[1755925931497,17.59,206.17,206.1,4.50622285]
[1755925931699,17.59,206.17,206.09,24.272]
[1755925931895,23.61,206.16,206.1,4.50609499]
[1755925932096,23.61,206.16,206.11,7.27609499]
[1755925932306,23.61,206.16,206.13,4.8532]
[1755925932507,26.39,206.16,206.11,2.77]
[1755925932804,26.39,206.16,206.11,7.6237]
[1755925933394,23.61,206.16,206.08,127.96]
[1755925933596,23.61,206.16,206.09,4.50506387]
[1755925933901,23.61,206.16,206.12,4.8536]
[1755925934104,26.39,206.16,206.12,4.8536]
[1755925934401,2.78,206.15,206.1,4.8541]
[1755925934703,23.61,206.16,206.08,127.96]
[1755925934899,23.61,206.16,206.09,4.52765961]
[1755925935098,23.61,206.16,206.07,30.3894539]
[1755925935304,23.61,206.16,206.08,132.46797413]
[1755925935503,23.61,206.16,206.11,4.8537]
[1755925935706,29.61,206.15,206.08,127.94]
[1755925936005,29.61,206.15,206.09,4.52811431]
[1755925936208,29.61,206.15,206.1,7.29811431]
[1755925936409,29.61,206.15,206.11,4.52811431]
[1755925936706,29.61,206.15,206.1,7.6242]
[1755925937303,29.61,206.15,206.11,4.53297118]
[1755925937608,29.61,206.15,206.11,4.8537]
[1755925937907,26.83,206.15,206.13,2.77]
[1755925938211,26.83,206.15,206.14,12.15444634]
[1755925939913,23.61,206.16,206.14,12.15444634]
[1755925940107,23.61,206.16,206.15,4.53124634]
[1755925940611,26.61,206.18,206.16,7.6227]
[1755925940813,2.78,206.26,206.17,7.30124634]
[1755925941010,2.78,206.26,206.19,6.1151539]
[1755925941210,2.78,206.37,206.2,9.03799897]
[1755925941411,6.1151539,206.37,206.21,4.53124634]
[1755925941610,2.78,206.36,206.22,4.53124634]
[1755925941807,2.78,206.36,206.23,4.53124634]
[1755925942006,2.78,206.36,206.24,4.53124634]
[1755925942207,4.8483,206.35,206.23,4.8511]
[1755925942407,2.78,206.34,206.24,4.53336253]
[1755925942607,2.78,206.34,206.23,4.8511]
[1755925942904,2.78,206.61,206.45,2.77]
[1755925943111,2.78,206.61,206.44,6.1151539]
[1755925943312,2.78,206.61,206.45,9.36180316]
[1755925943509,2.78,206.61,206.47,2.77]
[1755925943510,22.59,206.6,206.47,2.77]
[1755925943808,22.59,206.6,206.48,6.76880223]
[1755925944006,2.78,206.58,206.44,8.8851539]
[1755925944305,2.78,206.58,206.45,4.82524034]
[1755925944512,18.24,206.57,206.46,4.82524034]
[1755925944713,18.24,206.57,206.47,5.0713748]
[1755925944914,18.24,206.57,206.48,5.0713748]
[1755925945210,18.24,206.57,206.44,2.77]
[1755925945211,2.78,206.56,206.44,2.77]
[1755925945405,2.78,206.56,206.45,4.24465922]
[1755925945611,2.78,206.56,206.44,2.77]
[1755925946109,2.78,206.56,206.4,2.77]
[1755925946312,2.78,206.56,206.42,2.77]
[1755925946514,2.78,206.56,206.43,15.62211579]
[1755925946814,2.78,206.56,206.45,2.77]
[1755925947107,2.78,206.56,206.46,4.24484979]
[1755925947312,2.78,206.56,206.47,4.24484979]
[1755925947503,2.78,206.56,206.48,4.21118426]
[1755925947707,2.78,206.56,206.45,2.77]
[1755925948015,2.78,206.56,206.46,4.21164832]
[1755925948224,2.78,206.56,206.47,4.21164832]
[1755925948514,2.78,206.56,206.45,2.77]
[1755925948515,22.43,206.56,206.48,4.21164832]
[1755925948710,22.43,206.56,206.45,2.77]
[1755925949014,22.43,206.56,206.46,4.20589753]
[1755925949213,22.43,206.56,206.47,4.20589753]
[1755925949413,22.43,206.56,206.45,2.77]
[1755925949414,22.43,206.56,206.48,4.20589753]
[1755925949614,22.43,206.56,206.45,2.77]
[1755925949814,22.43,206.56,206.46,4.20101208]
[1755925950012,22.43,206.56,206.47,4.20101208]
[1755925950218,2.78,206.55,206.4,2.77]
[1755925950416,2.78,206.55,206.41,8.66302463]
[1755925950617,2.78,206.55,206.42,4.15215631]
[1755925950811,2.78,206.55,206.4,2.77]
[1755925951008,9.74900931,206.5,206.34,2.77]
[1755925951213,2.78,206.42,206.28,2.77]
[1755925951512,2.78,206.42,206.23,2.77]
[1755925951716,14.59590931,206.41,206.24,4.0518328]
[1755925952017,2.78,206.4,206.23,2.77]
[1755925952513,2.78,206.4,206.28,4.8497]
[1755925952705,2.78,206.4,206.29,4.01397454]
[1755925952910,2.78,206.4,206.28,4.8497]
[1755925953321,2.78,206.4,206.3,4.8493]
[1755925953521,2.58,206.45,206.29,2.78]
[1755925953817,2.58,206.45,206.34,24.2425]
[1755925954015,2.58,206.52,206.35,6.78946629]
[1755925954214,2.58,206.52,206.36,11.29694592]
[1755925954416,2.58,206.52,206.38,4.8474]
[1755925954713,2.58,206.52,206.33,130.5]
[1755925954714,2.58,206.48,206.3,2.78]
[1755925955216,2.58,206.41,206.24,2.78]
[1755925955518,2.58,206.41,206.25,4.01359933]
[1755925955716,2.58,206.41,206.24,2.78]
[1755925956318,2.58,206.4,206.24,2.78]
[1755925956811,7.4273,206.4,206.24,7.6307]
[1755925957006,7.4273,206.4,206.24,31.8848]
[1755925957214,2.58,206.4,206.25,32.50538647]
[1755925957411,2.58,206.4,206.26,15.54548308]
[1755925957615,2.58,206.4,206.3,4.8493]
[1755925958012,2.58,206.4,206.3,7.6293]
[1755925959111,2.58,206.4,206.3,2.78]
[1755925960919,2.58,206.4,206.24,2.78]
[1755925961119,2.58,206.4,206.25,14.75765126]
[1755925961319,2.58,206.4,206.27,2.78]
[1755925961813,2.58,206.4,206.29,4.8495]
[1755925962015,2.58,206.4,206.27,2.78]
[1755925962820,2.58,206.4,206.3,2.78]
[1755925963520,2.58,206.4,206.31,4.8492]
[1755925963720,18.8,206.43,206.31,4.8492]
[1755925964422,18.8,206.43,206.35,2.78]
[1755925964620,18.8,206.43,206.37,2.78]
[1755925964915,18.8,206.43,206.4,2.78]
[1755925965411,18.8,206.43,206.34,7.6284]
[1755925965616,18.8,206.43,206.35,4.31551292]
[1755925965814,18.8,206.43,206.36,13.74092268]
[1755925966014,18.8,206.43,206.36,4.8479]
[1755925966217,18.8,206.43,206.37,4.31536999]
[1755925966414,18.8,206.43,206.34,2.78]
[1755925966616,18.8,206.43,206.36,24.2404]
[1755925966815,19.65,206.56,206.44,24.2308]
[1755925967014,19.65,206.56,206.45,7.08958247]
[1755925967218,19.65,206.56,206.47,4.8453]
[1755925967424,19.65,206.56,206.45,2.78]
[1755925967613,19.65,206.56,206.46,4.30724591]
[1755925967817,19.65,206.56,206.46,24.2286]
[1755925968119,19.65,206.56,206.46,24.2285]
[1755925968517,19.65,206.56,206.47,8.87338833]
[1755925968826,19.65,206.56,206.45,2.78]
[1755925969017,19.65,206.56,206.46,8.87423602]
[1755925969218,19.65,206.56,206.51,4.8445]
[1755925969420,19.65,206.56,206.51,7.6245]
[1755925969928,19.65,206.56,206.46,12.52900931]
[1755925970226,19.65,206.56,206.48,4.8451]
[1755925970729,19.65,206.56,206.49,8.86694711]
[1755925971026,19.65,206.56,206.5,8.86694711]
[1755925971326,19.65,206.56,206.47,24.2272]
[1755925971525,19.65,206.56,206.51,4.8443]
[1755925971726,19.65,206.56,206.47,24.2272]
[1755925971727,18.36,206.55,206.47,24.2272]
[1755925971932,18.36,206.55,206.48,163.07041535]
[1755925972121,18.36,206.55,206.49,4.30149404]
[1755925972323,18.36,206.55,206.48,154.2056]
[1755925972630,18.36,206.55,206.51,4.8444]
[1755925973327,18.36,206.55,206.51,7.6244]
[1755925973722,18.36,206.55,206.53,4.8439]
[1755925974223,18.36,206.55,206.5,4.8446]
[1755925974528,18.36,206.55,206.52,2.78]
[1755925974824,18.36,206.55,206.52,7.6241]
[1755925976229,18.36,206.55,206.49,129.86]
[1755925976422,18.36,206.55,206.48,9.74900931]
[1755925976624,18.36,206.55,206.49,10.83805033]
[1755925976821,18.36,206.55,206.48,9.74900931]
[1755925976822,18.36,206.55,206.5,11.64088368]
[1755925977027,18.36,206.55,206.5,2.78]
[1755925977428,2.58,206.54,206.48,14.59400931]
[1755925977622,18.36,206.55,206.48,9.74900931]
[1755925977821,18.36,206.55,206.49,14.7430929]
[1755925978022,18.36,206.55,206.52,4.8441]
[1755925979025,20.94,206.55,206.49,4.8448]
[1755925979227,18.36,206.55,206.49,4.8448]
[1755925979530,18.36,206.55,206.47,156.5663]
[1755925979531,20.94,206.55,206.51,4.8445]
[1755925979722,2.58,206.54,206.42,153.32657239]
[1755925979927,2.58,206.54,206.43,140.34003536]
[1755925980126,2.58,206.54,206.37,12.52900931]
[1755925980327,2.58,206.54,206.38,39.01907877]
[1755925980524,2.58,206.54,206.39,10.87026146]
[1755925980720,2.58,206.54,206.4,8.88569982]
[1755925980928,2.58,206.51,206.33,156.7237]
[1755925981220,2.58,206.51,206.34,24.54406527]
[1755925981426,2.58,206.51,206.38,24.2376]
[1755925981726,2.58,206.51,206.39,14.79969524]
[1755925981926,2.58,206.51,206.4,10.88358773]
[1755925982129,18.36,206.55,206.43,2.78]
[1755925982328,18.36,206.55,206.44,144.58603764]
[1755925982627,18.36,206.55,206.45,14.78603764]
[1755925982833,18.36,206.55,206.46,14.78603764]
[1755925983132,18.36,206.55,206.47,14.78605361]
[1755925983337,18.36,206.55,206.49,4.8448]
[1755925983632,18.36,206.55,206.5,14.79083595]
[1755925983832,18.36,206.55,206.51,10.88361871]
[1755925984028,18.36,206.55,206.52,10.88361871]
[1755925984336,18.36,206.55,206.53,8.89781373]
[1755925984532,18.36,206.55,206.54,8.89781373]
[1755925984732,18.36,206.55,206.54,10.88500155]
[1755925984933,18.36,206.55,206.54,14.79348634]
[1755925985332,18.36,206.55,206.54,17.55348634]
[1755925985532,19.65,206.56,206.55,4.8436]
[1755925985739,18.54,206.58,206.55,19.63708634]
[1755925986032,2.6,206.65,206.56,14.79348634]
[1755925986231,2.6,206.65,206.57,14.79348634]
[1755925986429,2.6,206.65,206.58,14.79348634]
[1755925988831,2.6,206.65,206.59,4.8426]
[1755925989033,0.2,206.63,206.6,3.90848479]
[1755925989338,0.2,206.63,206.61,6.31083518]
[1755925989634,0.2,206.63,206.62,4.32271277]
[1755925991341,0.2,206.63,206.62,6.30841233]
[1755925991533,17.72,206.68,206.62,13.54021493]
[1755925991734,20.32,206.68,206.63,15.62171493]
[1755925991939,2.6,206.67,206.64,6.30841233]
[1755925992139,17.72,206.68,206.6,139.22900931]
[1755925992342,2.6,206.67,206.61,6.29896321]
[1755925992535,17.72,206.68,206.62,6.29925675]
[1755925992728,24.2041,206.67,206.51,4.8444]
[1755925993032,2.6,206.66,206.52,10.78096949]
[1755925993238,2.6,206.66,206.53,6.3055626]
[1755925993439,2.6,206.66,206.54,4.31878465]
[1755925993636,2.6,206.63,206.47,129.64]
[1755925993940,2.6,206.59,206.48,4.32243309]
[1755925994240,2.6,206.57,206.49,4.32243309]
[1755925994441,2.6,206.57,206.43,24.2321]
[1755925994631,2.6,206.57,206.42,325.46]
[1755925994632,2.6,206.57,206.44,6.31172171]
[1755925994943,2.6,206.55,206.45,6.31172171]
[1755925995238,2.6,206.55,206.47,24.2274]
[1755925995437,2.6,206.55,206.48,6.31096604]
[1755925995733,2.6,206.6,206.53,4.844]
[1755925995938,2.6,206.6,206.5,24.2239]
[1755925995939,2.6,206.6,206.54,4.33369643]
[1755925996140,2.6,206.6,206.5,24.2239]
[1755925996341,2.6,206.6,206.51,6.31982007]
[1755925996540,2.6,206.6,206.53,24.22]
[1755925996741,2.6,206.6,206.54,4.33307553]
[1755925996940,2.6,206.6,206.53,24.22]
[1755925997138,2.6,206.6,206.54,9.17764618]
[1755925997338,2.6,206.6,206.54,24.2192]
[1755925997644,2.6,206.67,206.54,24.2192]
[1755925998547,4.841,206.66,206.56,4.8432]
[1755925998744,2.6,206.65,206.56,4.8432]
[1755925999443,2.6,206.65,206.49,2.76]
[1755925999843,2.6,206.65,206.49,26.9847]
[1755926000051,2.6,206.65,206.5,4.34068841]
[1755926000250,2.6,206.65,206.51,4.34068841]
[1755926000450,2.6,206.65,206.52,4.34157621]
[1755926000645,27.46900931,206.68,206.49,2.76]
[1755926000646,2.6,206.63,206.49,2.76]
[1755926000945,2.6,206.63,206.5,4.34325847]
[1755926001149,2.6,206.63,206.45,24.2295]
[1755926001350,2.6,206.59,206.46,4.34473037]
[1755926001553,2.6,206.59,206.47,4.34903649]
[1755926001846,2.6,206.59,206.46,24.2286]
[1755926002046,2.6,206.59,206.47,4.34881657]
[1755926002252,2.6,206.59,206.44,2.76]
[1755926002447,4.8429,206.58,206.47,4.8453]
[1755926002643,2.6,206.59,206.44,2.76]
[1755926002849,2.6,206.59,206.45,4.35319079]
[1755926003044,2.6,206.59,206.44,2.76]
[1755926003245,2.6,206.59,206.45,4.35319853]
[1755926003446,2.6,206.59,206.44,2.76]
[1755926003447,2.6,206.58,206.44,2.76]
[1755926003753,2.6,206.58,206.45,4.35610113]
[1755926003950,2.6,206.58,206.48,24.2261]
[1755926004149,2.6,206.65,206.5,2.76]
[1755926004451,2.6,206.65,206.51,4.35610113]
[1755926004654,2.6,206.65,206.52,28.57760113]
[1755926004950,2.6,206.65,206.53,4.35610113]
[1755926005251,2.6,206.65,206.5,2.76]
[1755926005554,7.4413,206.65,206.51,4.35902315]
[1755926005749,2.6,206.65,206.5,26.9829]
[1755926005950,2.6,206.65,206.51,4.3588438]
[1755926006153,2.6,206.65,206.55,4.8435]
[1755926006757,2.6,206.65,206.57,4.8431]
[1755926009155,2.6,206.65,206.58,4.37047702]
[1755926009359,2.6,206.65,206.57,4.8431]
[1755926009662,7.4412,206.65,206.54,4.8437]
[1755926009859,7.4412,206.65,206.55,6.38007448]
[1755926010057,22.89,206.67,206.56,34.95098791]
[1755926010264,22.89,206.67,206.57,17.3384244]
[1755926010460,22.89,206.67,206.58,10.73408791]
[1755926010661,22.89,206.67,206.63,4.8417]
[1755926011052,22.89,206.67,206.58,2.76]
[1755926011255,22.89,206.67,206.59,6.37810019]
[1755926011457,22.89,206.67,206.63,4.8416]
[1755926011657,22.89,206.67,206.58,2.76]
[1755926011864,22.89,206.67,206.59,4.37667569]
[1755926012160,22.89,206.67,206.6,4.37667569]
[1755926012363,25.49,206.67,206.53,2.76]
[1755926012658,2.6,206.64,206.54,6.38530691]
[1755926012865,2.6,206.64,206.55,6.38530691]
[1755926013165,17.9,206.63,206.56,4.37792969]
[1755926013364,17.9,206.63,206.57,4.37792969]
[1755926013564,17.9,206.63,206.55,4.8436]
[1755926013764,17.9,206.63,206.56,4.38035144]
[1755926013964,17.9,206.63,206.57,4.38035144]
[1755926014263,17.9,206.63,206.55,4.8436]
[1755926014461,4.842,206.62,206.56,4.38084042]
[1755926014660,2.64,206.61,206.57,4.38084042]
[1755926014866,2.64,206.61,206.52,4.8441]
[1755926015069,2.64,206.61,206.53,6.39167628]
[1755926015360,2.64,206.61,206.54,4.38236051]
[1755926015662,20.54,206.63,206.48,2.72]
[1755926015865,2.64,206.62,206.49,6.39352697]
[1755926016064,7.482,206.62,206.51,4.8443]
[1755926016265,7.482,206.62,206.52,6.39352697]
[1755926016560,7.482,206.62,206.53,4.38272539]
[1755926016770,7.482,206.62,206.5,2.72]
[1755926016969,2.64,206.62,206.51,30.61549026]
[1755926017161,2.64,206.62,206.52,6.39262567]
[1755926017363,17.9,206.63,206.54,2.72]
[1755926017665,17.9,206.63,206.55,4.38322178]
[1755926017866,17.9,206.63,206.56,4.38322178]
[1755926018067,17.9,206.63,206.57,4.38020505]
[1755926018268,17.9,206.63,206.54,2.72]
[1755926018467,17.9,206.63,206.55,4.380364]
[1755926018667,17.9,206.63,206.56,4.380364]
[1755926018863,17.9,206.63,206.57,7.100364]
[1755926019170,17.9,206.63,206.59,2.72]
[1755926019369,17.9,206.63,206.61,4.8421]
[1755926019570,17.9,206.63,206.62,2.72]
[1755926021164,17.9,206.63,206.62,7.095034]
[1755926021358,17.9,206.63,206.62,2.72]
[1755926021963,17.9,206.63,206.62,7.09453356]
[1755926022367,12.852,206.63,206.62,7.57453356]
[1755926023168,22.89,206.67,206.66,4.841]
[1755926023671,18.88,206.72,206.66,4.84680465]
[1755926023870,18.88,206.72,206.67,4.36680465]
[1755926024065,18.88,206.72,206.68,4.36583993]
[1755926024262,18.88,206.72,206.69,4.36533421]
[1755926024464,18.88,206.72,206.67,9.74900931]
[1755926024662,18.88,206.72,206.69,29.0419]
[1755926025267,4.1533,206.72,206.71,4.8398]
[1755926025869,4.1533,206.72,206.71,134.6398]
[1755926026171,2.64,206.83,206.77,4.8384]
[1755926026566,23.05,206.86,206.77,24.1923]
[1755926026764,23.05,206.86,206.78,4.29764223]
[1755926026968,23.05,206.86,206.72,24.1974]
[1755926027168,23.05,206.86,206.77,4.8383]
[1755926027667,23.05,206.86,206.78,6.28322755]
[1755926027867,23.05,206.86,206.79,4.29260667]
[1755926028071,23.05,206.86,206.76,129.3]
[1755926028271,23.05,206.86,206.78,4.8381]
[1755926028469,23.05,206.86,206.79,4.2878901]
[1755926028676,23.05,206.86,206.8,4.28666734]
[1755926028974,23.05,206.86,206.76,129.3]
[1755926029172,23.05,206.86,206.81,4.8374]
[1755926029364,23.05,206.86,206.79,129.3]
[1755926030175,25.69,206.86,206.73,325.38]
[1755926030372,25.69,206.86,206.74,144.83237264]
[1755926030571,23.05,206.86,206.75,10.69272732]
[1755926030775,23.05,206.86,206.76,6.2687679]
[1755926031074,23.05,206.86,206.77,4.28369862]
[1755926031276,23.05,206.86,206.74,153.4958]
[1755926031479,23.05,206.86,206.75,10.67791403]
[1755926031780,2.64,206.85,206.76,4.2767142]
[1755926031975,2.64,206.85,206.77,4.2767142]
[1755926032176,2.64,206.85,206.74,129.3]
[1755926032379,2.64,206.85,206.76,29.0322]
[1755926032574,2.64,206.85,206.77,4.27650171]
[1755926032769,23.05,206.86,206.78,9.11085235]
[1755926032969,23.05,206.86,206.79,4.2720788]
[1755926033170,23.05,206.86,206.76,24.1935]
[1755926033371,23.05,206.86,206.77,6.25224895]
[1755926033576,23.05,206.86,206.8,4.8377]
[1755926033773,23.05,206.86,206.81,129.08]
[1755926034475,25.69,206.86,206.73,325.38]
[1755926034683,25.69,206.86,206.76,129.04]
[1755926034976,23.05,206.86,206.76,129.04]
[1755926035174,23.05,206.86,206.77,9.10490643]
[1755926035372,23.05,206.86,206.77,4.8384]
[1755926035582,25.69,206.86,206.76,129.04]
[1755926037882,25.69,206.86,206.76,133.8785]
[1755926038388,25.69,206.86,206.78,4.8381]
[1755926038993,25.69,206.86,206.76,129.04]
[1755926039194,2.64,206.85,206.76,129.04]
[1755926039991,2.64,206.85,206.77,4.8384]
[1755926040595,2.64,206.85,206.76,129.04]
[1755926041205,2.64,206.85,206.76,133.8786]
[1755926041389,2.64,206.85,206.76,129.04]
[1755926041993,2.64,206.85,206.77,24.1922]
[1755926042492,2.64,206.85,206.76,129.04]
[1755926042788,2.64,206.85,206.77,24.192]
[1755926043094,23.05,206.86,206.78,24.1909]
[1755926043596,23.05,206.86,206.8,24.1884]
[1755926043787,23.05,206.86,206.82,4.837]
[1755926043982,23.05,206.86,206.82,133.417]
[1755926045291,23.05,206.86,206.84,4.8367]
[1755926045593,27.95,206.88,206.84,4.8367]
[1755926046284,27.95,206.88,206.87,4.8361]
[1755926046487,27.95,206.88,206.87,133.2161]
[1755926047392,27.95,206.88,206.87,133.6961]
[1755926047587,27.95,206.88,206.87,128.44]
[1755926047794,20.3587,206.88,206.87,128.92]
[1755926048697,20.3587,206.88,206.87,133.35090716]
[1755926048883,5.5893,206.88,206.87,133.35090716]
[1755926049492,20.4,206.99,206.93,4.8345]
[1755926049787,20.4,206.99,206.94,128.62]
[1755926050183,20.4,206.99,206.95,128.58]
[1755926050388,2.69,206.98,206.95,128.58]
[1755926050584,20.4,206.99,206.95,128.58]
[1755926050990,20.4,206.99,206.96,128.86]
[1755926051796,20.4,206.99,206.96,133.6939]
[1755926052991,20.4,206.99,206.96,157.8639]
[1755926053391,18.03,207.06,206.99,24.1656]
[1755926053599,18.03,207.06,207.0,128.8]
[1755926053991,18.03,207.06,207.03,4.8323]
[1755926054294,18.03,207.06,206.94,9.74900931]
[1755926054492,18.03,207.06,206.95,135.11055803]
[1755926054795,18.03,207.06,206.95,128.9]
[1755926054990,18.03,207.06,206.96,1.97021982]
[1755926055192,18.03,207.06,207.03,4.8322]
[1755926055396,18.03,207.06,207.04,129.52]
[1755926055698,18.03,207.06,207.05,129.52]
[1755926058498,18.03,207.06,207.05,129.26]
[1755926061698,18.03,207.06,207.05,129.22]
[1755926062100,18.03,207.06,207.03,4.8322]
[1755926062293,18.03,207.06,207.04,135.31373111]
[1755926062600,18.03,207.06,207.05,4.8319]
[1755926063301,18.03,207.06,207.04,129.14]
[1755926063597,18.03,207.06,206.93,24.1733]
[1755926063797,18.03,207.06,207.01,4.8328]
[1755926063994,18.03,207.06,206.96,9.74900931]
[1755926063995,18.03,207.06,207.02,129.32]
[1755926064394,18.03,207.06,207.03,4.8323]
[1755926064995,20.72,207.06,207.02,134.1526]
[1755926065203,3.17,207.05,206.85,3.7031241]
[1755926065404,2.69,207.05,206.88,9.74900931]
[1755926065698,2.69,207.05,206.95,24.1711]
[1755926065894,18.03,207.06,206.96,164.54380364]
[1755926066101,18.03,207.06,206.97,14.28989407]
[1755926066296,18.03,207.06,207.01,4.8328]
[1755926066500,20.72,207.06,207.02,136.02851616]
[1755926066700,18.03,207.06,207.03,6.18851616]
[1755926066905,18.03,207.06,207.04,1.97344076]
[1755926067197,18.03,207.06,207.04,129.9]
[1755926067397,20.72,207.06,207.04,129.9]
[1755926067595,18.03,207.06,207.04,129.9]
[1755926068404,2.69,207.11,207.05,6.19636588]
[1755926068593,2.69,207.11,207.06,6.19644184]
[1755926068799,2.69,207.11,207.04,134.7321]
[1755926068997,2.69,207.11,207.05,6.19592997]
[1755926069202,2.69,207.11,207.06,6.19592997]
[1755926069405,2.69,207.11,207.07,1.98259449]
[1755926069610,2.69,207.11,207.04,134.7321]
[1755926069807,2.69,207.11,207.05,6.22204668]
[1755926070107,2.69,207.11,207.06,6.22204668]
[1755926070306,2.69,207.11,207.04,134.7321]
[1755926070601,2.69,207.11,207.06,4.8316]
[1755926070907,2.69,207.17,207.07,6.21898518]
[1755926071099,0.13,207.16,207.08,6.21733236]
[1755926071297,0.13,207.16,207.09,136.01733236]
[1755926071500,0.13,207.16,207.09,129.8]
[1755926071699,0.13,207.16,207.1,4.8307]
[1755926072010,0.13,207.16,207.09,129.8]
[1755926072207,0.13,207.16,207.13,4.83]